bitfinex-derivatives/quotes_BTCF0:USTF0_20250810
["timestamp","ask_amount","ask_price","bid_price","bid_amount"]
[1754790535482,0.84900742,116690.0,116680.0,0.1735724]
[1754790536087,0.5873404,116690.0,116680.0,0.43523942]
[1754790536282,0.84900742,116690.0,116680.0,0.43523942]
[1754790536587,0.5873404,116690.0,116680.0,0.43523942]
[1754790536788,0.84900742,116690.0,116680.0,0.43523942]
[1754790536989,0.84900742,116690.0,116680.0,0.1735724]
[1754790537293,0.84900742,116690.0,116680.0,0.43523942]
[1754790538189,0.84900742,116690.0,116680.0,0.1735724]
[1754790538389,0.84900742,116690.0,116680.0,0.43523942]
[1754790538885,0.5873404,116690.0,116680.0,0.43523942]
[1754790539082,0.84900742,116690.0,116680.0,0.43523942]
[1754790539787,0.84900742,116690.0,116680.0,0.1735724]
[1754790540989,0.84900742,116690.0,116680.0,0.0878845]
[1754790546489,0.5873404,116690.0,116680.0,0.0878845]
[1754790546792,0.84900742,116690.0,116680.0,0.0878845]
[1754790547495,0.84900742,116690.0,116680.0,0.38317152]
[1754790548392,0.84900742,116690.0,116680.0,0.1215045]
[1754790549296,0.5873404,116690.0,116680.0,0.1215045]
[1754790549593,0.84900742,116690.0,116680.0,0.1215045]
[1754790550497,0.84900742,116690.0,116680.0,0.0878845]
[1754790551797,1.20980742,116690.0,116680.0,0.0878845]
[1754790554102,0.9481404,116690.0,116680.0,0.0878845]
[1754790554297,1.20980742,116690.0,116680.0,0.0878845]
[1754790557502,0.9481404,116690.0,116680.0,0.0878845]
[1754790557705,1.20980742,116690.0,116680.0,0.0878845]
[1754790558004,0.9481404,116690.0,116680.0,0.0878845]
[1754790558205,1.20980742,116690.0,116680.0,0.0878845]
[1754790560892,0.9481404,116690.0,116680.0,0.0878845]
[1754790561096,1.20980742,116690.0,116680.0,0.0878845]
[1754790564008,0.9481404,116690.0,116680.0,0.0878845]
[1754790564208,1.20980742,116690.0,116680.0,0.0878845]
[1754790570117,0.9481404,116690.0,116680.0,0.0878845]
[1754790570413,1.20980742,116690.0,116680.0,0.0878845]
[1754790571815,0.9481404,116690.0,116680.0,0.0878845]
[1754790572313,1.20980742,116690.0,116680.0,0.0878845]
[1754790572516,0.9481404,116690.0,116680.0,0.0878845]
[1754790572717,1.20980742,116690.0,116680.0,0.34955152]
[1754790574526,0.9481404,116690.0,116680.0,0.0878845]
[1754790574719,1.20980742,116690.0,116680.0,0.0878845]
[1754790574919,1.20980742,116690.0,116680.0,0.34955152]
[1754790575527,1.20980742,116690.0,116680.0,0.0878845]
[1754790576123,1.20980742,116690.0,116680.0,0.34955152]
[1754790579726,1.20980742,116690.0,116680.0,0.0878845]
[1754790581528,1.20980742,116690.0,116680.0,0.34955152]
[1754790581732,1.20980742,116690.0,116680.0,0.0878845]
[1754790583429,1.20980742,116690.0,116680.0,0.34955152]
[1754790584233,0.9481404,116690.0,116680.0,0.34955152]
[1754790584434,1.20980742,116690.0,116680.0,0.34955152]
[1754790585225,0.9279097,116690.0,116680.0,0.34955152]
[1754790585425,1.20864016,116690.0,116680.0,0.38215152]
[1754790586427,1.20864016,116690.0,116680.0,0.34955152]
[1754790586642,2.01712016,116690.0,116680.0,0.39785152]
[1754790586935,2.01712016,116690.0,116680.0,0.1361845]
[1754790587129,2.01712016,116690.0,116680.0,0.39785152]
[1754790588233,2.01712016,116690.0,116680.0,0.1361845]
[1754790588433,2.01712016,116690.0,116680.0,0.39785152]
[1754790590128,1.29552016,116690.0,116680.0,0.39785152]
[1754790590324,1.65632016,116690.0,116680.0,0.39785152]
[1754790590534,1.65632016,116690.0,116680.0,0.1361845]
[1754790590737,1.65632016,116690.0,116680.0,0.39785152]
[1754790592133,1.39465314,116690.0,116680.0,0.39785152]
[1754790592339,1.65632016,116690.0,116680.0,0.39785152]
[1754790596638,0.84784016,116690.0,116680.0,0.42015152]
[1754790596938,1.65624016,116690.0,116680.0,0.44352152]
[1754790597241,1.65624016,116690.0,116680.0,0.42015152]
[1754790598141,1.65624016,116690.0,116680.0,0.1584845]
[1754790598343,1.65624016,116690.0,116680.0,0.42015152]
[1754790599445,1.65624016,116690.0,116680.0,0.1584845]
[1754790599636,1.65624016,116690.0,116680.0,0.42015152]
[1754790601046,1.65624016,116690.0,116680.0,0.1361845]
[1754790601241,1.65624016,116690.0,116680.0,0.34955152]
[1754790602043,0.84784016,116690.0,116680.0,0.34955152]
[1754790602244,1.65620016,116690.0,116680.0,0.34955152]
[1754790604143,0.58617314,116690.0,116680.0,0.70518854]
[1754790604746,0.58430324,116690.0,116680.0,0.70518854]
[1754790606546,0.58430324,116690.0,116680.0,0.1818545]
[1754790606747,0.58430324,116690.0,116680.0,0.70518854]
[1754790608440,0.22350324,116690.0,116680.0,0.70518854]
[1754790608846,0.48517026,116690.0,116680.0,0.70518854]
[1754790609047,0.22350324,116690.0,116680.0,0.70518854]
[1754790609348,0.48517026,116690.0,116680.0,0.70518854]
[1754790609747,0.48517026,116690.0,116680.0,0.1818545]
[1754790609945,0.48517026,116690.0,116680.0,0.70518854]
[1754790610751,0.22350324,116690.0,116680.0,0.70518854]
[1754790611452,0.48517026,116690.0,116680.0,0.70518854]
[1754790613149,0.48517026,116690.0,116680.0,0.41092152]
[1754790613350,0.84597026,116690.0,116680.0,0.42069152]
[1754790614347,0.58430324,116690.0,116680.0,0.42069152]
[1754790614552,0.84597026,116690.0,116680.0,0.42069152]
[1754790614757,0.58430324,116690.0,116680.0,0.42069152]
[1754790615049,0.58430324,116690.0,116680.0,0.68235854]
[1754790615349,1.65413026,116690.0,116680.0,0.68235854]
[1754790615551,1.65413026,116690.0,116680.0,0.42069152]
[1754790618454,1.65413026,116690.0,116680.0,0.1590245]
[1754790618657,1.65413026,116690.0,116680.0,0.42069152]
[1754790619554,1.65413026,116690.0,116680.0,0.1367245]
[1754790619753,1.39246324,116690.0,116680.0,0.39839152]
[1754790619952,1.65413026,116690.0,116680.0,0.39839152]
[1754790622053,1.65413026,116690.0,116680.0,0.1367245]
[1754790622257,1.65413026,116690.0,116680.0,0.39839152]
[1754790623956,1.65413026,116690.0,116680.0,0.34955152]
[1754790625258,1.65413026,116690.0,116680.0,0.0878845]
[1754790625555,1.65413026,116690.0,116680.0,0.34955152]
[1754790626259,1.65413026,116690.0,116680.0,0.38269152]
[1754790626558,1.65413026,116690.0,116680.0,0.42062152]
[1754790627059,0.84597026,116690.0,116680.0,0.42062152]
[1754790628757,0.58430324,116690.0,116680.0,0.42062152]
[1754790628956,0.84597026,116690.0,116680.0,0.42062152]
[1754790629659,0.58430324,116690.0,116680.0,0.42062152]
[1754790629849,0.84597026,116690.0,116680.0,0.68228854]
[1754790630552,0.58430324,116690.0,116680.0,0.68228854]
[1754790630754,0.84597026,116690.0,116680.0,0.69948205]
[1754790632057,0.58430324,116690.0,116680.0,0.69948205]
[1754790632260,0.84597026,116690.0,116680.0,0.69948205]
[1754790633056,0.58430324,116690.0,116680.0,0.69948205]
[1754790633257,0.84597026,116690.0,116680.0,0.69948205]
[1754790633755,0.58430324,116690.0,116680.0,0.69948205]
[1754790633952,0.84597026,116690.0,116680.0,0.17614801]
[1754790634159,0.84597026,116690.0,116680.0,0.69948205]
[1754790634760,0.84597026,116690.0,116680.0,0.17614801]
[1754790635260,0.84597026,116690.0,116680.0,0.69948205]
[1754790636458,0.58430324,116690.0,116680.0,0.69948205]
[1754790636662,0.84597026,116690.0,116680.0,0.69948205]
[1754790637860,0.84597026,116690.0,116680.0,0.17614801]
[1754790638152,0.84597026,116690.0,116680.0,0.43781503]
[1754790638660,0.84597026,116690.0,116680.0,0.17614801]
[1754790639164,0.84597026,116690.0,116680.0,0.43781503]
[1754790641058,0.84597026,116690.0,116680.0,0.17614801]
[1754790641258,0.84597026,116690.0,116680.0,0.43781503]
[1754790642964,0.58430324,116690.0,116680.0,0.43781503]
[1754790643260,0.84597026,116690.0,116680.0,0.17614801]
[1754790643468,0.84597026,116690.0,116680.0,0.43781503]
[1754790645568,0.58430324,116690.0,116680.0,0.43781503]
[1754790645866,0.84597026,116690.0,116680.0,0.17614801]
[1754790646054,0.84597026,116690.0,116680.0,0.43781503]
[1754790646259,0.58430324,116690.0,116680.0,0.43781503]
[1754790646460,0.84597026,116690.0,116680.0,0.43781503]
[1754790648968,0.84597026,116690.0,116680.0,0.17614801]
[1754790649165,0.84597026,116690.0,116680.0,0.43781503]
[1754790649364,0.84597026,116690.0,116680.0,0.36674503]
[1754790649669,0.84597026,116690.0,116680.0,0.40147503]
[1754790651071,0.84597026,116690.0,116680.0,0.13980801]
[1754790651266,0.84597026,116690.0,116680.0,0.40147503]
[1754790651772,0.58430324,116690.0,116680.0,0.40147503]
[1754790652371,0.84597026,116690.0,116680.0,0.40147503]
[1754790653070,0.84597026,116690.0,116680.0,0.13980801]
[1754790653571,0.84597026,116690.0,116680.0,0.40147503]
[1754790653972,0.84597026,116690.0,116680.0,0.13980801]
[1754790654167,0.84597026,116690.0,116680.0,0.36674503]
[1754790656670,0.84597026,116690.0,116680.0,0.10507801]
[1754790656871,0.84597026,116690.0,116680.0,0.36674503]
[1754790657066,0.48517026,116690.0,116680.0,0.36674503]
[1754790657273,0.84597026,116690.0,116680.0,0.10507801]
[1754790657574,0.84597026,116690.0,116680.0,0.36674503]
[1754790658573,0.84597026,116690.0,116680.0,0.10507801]
[1754790660266,0.58430324,116690.0,116680.0,0.36674503]
[1754790660461,1.39174324,116690.0,116680.0,0.36674503]
[1754790660665,1.65341026,116690.0,116680.0,0.40147503]
[1754790662276,1.39174324,116690.0,116680.0,0.40147503]
[1754790662477,1.65341026,116690.0,116680.0,0.40147503]
[1754790663375,1.65341026,116690.0,116680.0,0.41784503]
[1754790663565,1.65341026,116690.0,116680.0,0.43929503]
[1754790668377,1.65341026,116690.0,116680.0,0.10507801]
[1754790669380,1.65341026,116690.0,116680.0,0.36674503]
[1754790669582,1.65341026,116690.0,116680.0,0.10507801]
[1754790669774,1.65341026,116690.0,116680.0,0.36674503]
[1754790670479,1.39174324,116690.0,116680.0,0.36674503]
[1754790670676,1.65341026,116690.0,116680.0,0.36674503]
[1754790671077,1.65341026,116690.0,116680.0,0.10507801]
[1754790671474,1.65341026,116690.0,116680.0,0.36674503]
[1754790673485,1.65341026,116690.0,116680.0,0.10507801]
[1754790673782,1.65341026,116690.0,116680.0,0.36674503]
[1754790674779,1.39174324,116690.0,116680.0,0.36674503]
[1754790674978,1.65341026,116690.0,116680.0,0.36674503]
[1754790678085,1.29261026,116690.0,116680.0,0.36674503]
[1754790678281,1.65341026,116690.0,116680.0,0.36674503]
[1754790678475,1.39174324,116690.0,116680.0,0.36674503]
[1754790678680,1.65341026,116690.0,116680.0,0.36674503]
[1754790679078,1.65341026,116690.0,116680.0,0.10507801]
[1754790679279,1.65341026,116690.0,116680.0,0.36674503]
[1754790680171,1.29261026,116690.0,116680.0,0.36674503]
[1754790680384,1.65341026,116690.0,116680.0,0.36674503]
[1754790681985,1.39174324,116690.0,116680.0,0.36674503]
[1754790682180,1.65341026,116690.0,116680.0,0.36674503]
[1754790684386,1.65341026,116690.0,116680.0,0.40154503]
[1754790687287,1.65341026,116690.0,116680.0,0.13987801]
[1754790687484,1.65341026,116690.0,116680.0,0.40154503]
[1754790691279,1.39174324,116690.0,116680.0,0.40154503]
[1754790691479,1.65341026,116690.0,116680.0,0.40154503]
[1754790692688,1.39174324,116690.0,116680.0,0.40154503]
[1754790692888,1.65341026,116690.0,116680.0,0.40154503]
[1754790694693,0.84597026,116690.0,116680.0,0.44083503]
[1754790694895,0.84597026,116690.0,116680.0,0.46420503]
[1754790695393,0.84597026,116690.0,116680.0,0.44083503]
[1754790696195,0.58430324,116690.0,116680.0,0.44083503]
[1754790696395,0.84597026,116690.0,116680.0,0.44083503]
[1754790696788,0.58430324,116690.0,116680.0,0.44083503]
[1754790697096,0.84597026,116690.0,116680.0,0.44083503]
[1754790697396,0.58430324,116690.0,116680.0,0.44083503]
[1754790697596,0.84597026,116690.0,116680.0,0.44083503]
[1754790698897,0.58430324,116690.0,116680.0,0.44083503]
[1754790699098,0.84597026,116690.0,116680.0,0.44083503]
[1754790701899,0.84597026,116690.0,116680.0,0.17916801]
[1754790702099,0.84597026,116690.0,116680.0,0.40154503]
[1754790702398,0.84597026,116690.0,116680.0,0.10507801]
[1754790702598,0.84597026,116690.0,116680.0,0.36674503]
[1754790707606,0.58430324,116690.0,116680.0,0.39834503]
[1754790707802,0.84597026,116690.0,116680.0,0.10507801]
[1754790708610,0.84597026,116690.0,116680.0,0.0878845]
[1754790710509,0.58430324,116690.0,116680.0,0.0878845]
[1754790710706,0.84597026,116690.0,116680.0,0.34955152]
[1754790710909,0.84597026,116690.0,116680.0,0.0878845]
[1754790711908,0.58430324,116690.0,116680.0,0.0878845]
[1754790712108,0.84597026,116690.0,116680.0,0.0878845]
[1754790712411,0.84597026,116690.0,116680.0,0.34955152]
[1754790712612,0.84597026,116690.0,116680.0,0.0878845]
[1754790712811,0.58430324,116690.0,116680.0,0.34955152]
[1754790713110,0.84597026,116690.0,116680.0,0.0878845]
[1754790713811,1.65229026,116690.0,116680.0,0.0878845]
[1754790714111,1.65229026,116690.0,116680.0,0.34955152]
[1754790714412,1.39062324,116690.0,116680.0,0.34955152]
[1754790714606,1.65229026,116690.0,116680.0,0.34955152]
[1754790715412,1.65229026,116690.0,116680.0,0.0878845]
[1754790716114,1.65229026,116690.0,116680.0,0.34955152]
[1754790717415,1.65229026,116690.0,116680.0,0.0878845]
[1754790717607,1.65229026,116690.0,116680.0,0.34955152]
[1754790719118,1.65229026,116690.0,116680.0,0.0878845]
[1754790721818,1.39062324,116690.0,116680.0,0.0878845]
[1754790722118,1.65213026,116690.0,116680.0,0.34955152]
[1754790723018,1.65213026,116690.0,116680.0,0.0878845]
[1754790723218,1.65213026,116690.0,116680.0,0.34955152]
[1754790724418,1.65213026,116690.0,116680.0,0.0878845]
[1754790725219,1.65213026,116690.0,116680.0,0.34955152]
[1754790726519,1.65213026,116690.0,116680.0,0.0878845]
[1754790728224,1.65213026,116690.0,116680.0,0.34955152]
[1754790728523,1.65213026,116690.0,116680.0,0.0878845]
[1754790731916,1.63306682,116690.0,116680.0,0.0878845]
[1754790732117,1.65214496,116690.0,116680.0,0.0878845]
[1754790733425,1.91381198,116690.0,116680.0,0.0878845]
[1754790733628,1.91381198,116690.0,116680.0,0.0022]
[1754790735125,1.65214496,116690.0,116680.0,0.0878872]
[1754790738930,1.39047794,116690.0,116680.0,0.0878872]
[1754790739120,1.65214496,116690.0,116680.0,0.0878872]
[1754790743434,1.65214496,116690.0,116680.0,0.0022]
[1754790743827,1.91381198,116690.0,116680.0,0.0022]
[1754790745138,1.39047794,116690.0,116680.0,0.0878871]
[1754790745438,1.91381198,116690.0,116680.0,0.0878871]
[1754790745637,1.39047794,116690.0,116680.0,0.0878871]
[1754790745835,1.91381198,116690.0,116680.0,0.0878871]
[1754790746139,1.91381198,116690.0,116680.0,0.0022]
[1754790751239,1.91381198,116690.0,116680.0,0.0878871]
[1754790754344,1.91381198,116690.0,116680.0,0.0022]
[1754790754544,1.91381198,116690.0,116680.0,0.0878871]
[1754790755350,1.39047794,116690.0,116680.0,0.0878871]
[1754790755542,1.91381198,116690.0,116680.0,0.0878871]
[1754790756145,2.27461198,116690.0,116680.0,0.0878871]
[1754790756345,2.27461198,116690.0,116680.0,0.0022]
[1754790759545,1.75127794,116690.0,116680.0,0.0022]
[1754790759844,2.27461198,116690.0,116680.0,0.0022]
[1754790761050,2.27357198,116690.0,116680.0,0.0022]
[1754790763449,1.75023794,116690.0,116680.0,0.0022]
[1754790763652,2.27357198,116690.0,116680.0,0.0022]
[1754790763951,1.75023794,116690.0,116680.0,0.0022]
[1754790764149,2.27357198,116690.0,116680.0,0.0022]
[1754790766149,1.75023794,116690.0,116680.0,0.0022]
[1754790766361,2.27357198,116690.0,116680.0,0.0022]
[1754790766749,1.75023794,116690.0,116680.0,0.0022]
[1754790766955,2.27357198,116690.0,116680.0,0.0022]
[1754790768352,0.1018267,116680.0,116660.0,0.01761419]
[1754790768558,0.2026314,116660.0,116650.0,0.3281028]
[1754790768750,0.82509842,116660.0,116650.0,0.58976982]
[1754790768955,0.82509842,116660.0,116650.0,0.50406172]
[1754790769356,1.08676544,116660.0,116650.0,0.1566866]
[1754790769557,1.08676544,116660.0,116650.0,0.0857087]
[1754790769759,1.08676544,116660.0,116650.0,0.1200787]
[1754790770051,1.08676544,116660.0,116650.0,0.1566887]
[1754790770255,1.08676544,116660.0,116650.0,0.41835572]
[1754790770456,1.08676544,116660.0,116650.0,0.41935572]
[1754790771254,1.08776544,116660.0,116650.0,0.42135572]
[1754790772365,1.09633122,116660.0,116650.0,0.42135572]
[1754790773261,0.8346642,116660.0,116650.0,0.42135572]
[1754790775677,0.57299718,116660.0,116650.0,0.42135572]
[1754790775877,0.8346642,116660.0,116650.0,0.42135572]
[1754790776170,0.57299718,116660.0,116650.0,0.42135572]
[1754790776377,0.8346642,116660.0,116650.0,0.42135572]
[1754790777777,0.8346642,116660.0,116650.0,0.003]
[1754790777778,1.11536734,116660.0,116650.0,0.003]
[1754790778175,1.11536734,116660.0,116650.0,0.26466702]
[1754790778882,1.11536734,116660.0,116650.0,0.29903702]
[1754790779481,0.5920333,116660.0,116650.0,0.29903702]
[1754790779674,1.11536734,116660.0,116650.0,0.29903702]
[1754790780279,1.11536734,116660.0,116650.0,0.38474572]
[1754790782084,0.5920333,116660.0,116650.0,0.38474572]
[1754790782284,1.11536734,116660.0,116650.0,0.38474572]
[1754790782579,1.11536734,116660.0,116650.0,0.1230787]
[1754790782784,1.11536734,116660.0,116650.0,0.38474572]
[1754790783684,1.11536734,116660.0,116650.0,0.29903702]
[1754790783984,1.11536734,116660.0,116650.0,0.03737]
[1754790784184,1.11536734,116660.0,116650.0,0.29903702]
[1754790784484,1.11536734,116660.0,116650.0,0.38474592]
[1754790787087,0.5920333,116660.0,116650.0,0.38474592]
[1754790787284,1.11536734,116660.0,116650.0,0.1232789]
[1754790787483,0.5920333,116660.0,116650.0,0.38494592]
[1754790787685,1.11536734,116660.0,116650.0,0.38494592]
[1754790788283,0.85370032,116660.0,116650.0,0.38494592]
[1754790789087,0.8536903,116660.0,116650.0,0.38494592]
[1754790790089,0.8536903,116660.0,116650.0,0.42213592]
[1754790790285,1.11535732,116660.0,116650.0,0.1604689]
[1754790790478,1.11535732,116660.0,116650.0,0.42213592]
[1754790791889,0.8536903,116660.0,116650.0,0.42213592]
[1754790792590,0.8536903,116660.0,116650.0,0.1604689]
[1754790792792,0.8536903,116660.0,116650.0,0.42213592]
[1754790793792,1.11535732,116660.0,116650.0,0.42213592]
[1754790794990,0.59202328,116660.0,116650.0,0.35057592]
[1754790795190,0.59202328,116660.0,116650.0,0.42210592]
[1754790795392,0.8536903,116660.0,116650.0,0.42210592]
[1754790795891,1.6582503,116660.0,116650.0,0.42210592]
[1754790796794,1.91991732,116660.0,116650.0,0.42210592]
[1754790797388,1.55911732,116660.0,116650.0,0.42210592]
[1754790797590,1.91991732,116660.0,116650.0,0.42210592]
[1754790798993,1.91991732,116660.0,116650.0,0.1604389]
[1754790799194,1.91991732,116660.0,116650.0,0.42210592]
[1754790799595,1.39658328,116660.0,116650.0,0.42210592]
[1754790799797,1.6582503,116660.0,116650.0,0.1604389]
[1754790800095,1.6582503,116660.0,116650.0,0.42210592]
[1754790800293,1.39658328,116660.0,116650.0,0.42210592]
[1754790800496,1.91991732,116660.0,116650.0,0.42210592]
[1754790801797,1.39658328,116660.0,116650.0,0.42210592]
[1754790801993,1.91991732,116660.0,116650.0,0.42210592]
[1754790802393,1.55911732,116660.0,116650.0,0.42210592]
[1754790802595,1.91991732,116660.0,116650.0,0.42210592]
[1754790805498,1.91991732,116660.0,116650.0,0.1604389]
[1754790805700,1.91991732,116660.0,116650.0,0.42210592]
[1754790806705,1.91991732,116660.0,116650.0,0.1604389]
[1754790806902,1.91991732,116660.0,116650.0,0.40064592]
[1754790808606,1.39658328,116660.0,116650.0,0.40064592]
[1754790808806,1.91991732,116660.0,116650.0,0.40064592]
[1754790809006,1.91991732,116660.0,116650.0,0.1389789]
[1754790809201,1.91991732,116660.0,116650.0,0.40064592]
[1754790815011,1.39658328,116660.0,116650.0,0.41801811]
[1754790815313,1.91991732,116660.0,116650.0,0.41801811]
[1754790815812,1.39658328,116660.0,116650.0,0.41801811]
[1754790816012,1.6582503,116660.0,116650.0,0.41801811]
[1754790817607,1.65808961,116660.0,116650.0,0.41801811]
[1754790817908,1.65808961,116660.0,116650.0,0.43967811]
[1754790818209,0.59186259,116660.0,116650.0,0.43967811]
[1754790818415,1.65764961,116660.0,116650.0,0.43967811]
[1754790820018,1.65764961,116660.0,116650.0,0.17801109]
[1754790820216,1.65764961,116660.0,116650.0,0.43967811]
[1754790821120,1.65764961,116660.0,116650.0,0.17801109]
[1754790821320,1.65764961,116660.0,116650.0,0.43967811]
[1754790824127,0.85352961,116660.0,116650.0,0.43967811]
[1754790824329,1.65756961,116660.0,116650.0,0.43967811]
[1754790826130,1.65756961,116660.0,116650.0,0.17801109]
[1754790826331,1.65756961,116660.0,116650.0,0.43967811]
[1754790828631,1.39590259,116660.0,116650.0,0.43967811]
[1754790828932,1.65756961,116660.0,116650.0,0.43967811]
[1754790833735,1.29676961,116660.0,116650.0,0.43967811]
[1754790833938,1.65756961,116660.0,116650.0,0.43967811]
[1754790834736,1.29676961,116660.0,116650.0,0.43967811]
[1754790834937,1.65756961,116660.0,116650.0,0.43967811]
[1754790836036,1.29676961,116660.0,116650.0,0.43967811]
[1754790836238,1.65756961,116660.0,116650.0,0.43967811]
[1754790836731,1.29676961,116660.0,116650.0,0.43967811]
[1754790836938,1.65756961,116660.0,116650.0,0.43967811]
[1754790840938,1.39590259,116660.0,116650.0,0.43967811]
[1754790841138,1.65756961,116660.0,116650.0,0.43967811]
[1754790841440,1.29676961,116660.0,116650.0,0.43967811]
[1754790841638,1.65756961,116660.0,116650.0,0.43967811]
[1754790841934,0.49759541,116660.0,116650.0,0.43936811]
[1754790842131,0.49759541,116660.0,116650.0,0.46273811]
[1754790842338,0.58329721,116660.0,116650.0,0.46273811]
[1754790843138,0.58329721,116660.0,116650.0,0.20107109]
[1754790843341,0.58329721,116660.0,116650.0,0.46273811]
[1754790844141,0.58329721,116660.0,116650.0,0.43936811]
[1754790845640,0.49759541,116660.0,116650.0,0.40534811]
[1754790845941,0.49759541,116660.0,116650.0,0.46145811]
[1754790846138,0.49759541,116660.0,116650.0,0.47024967]
[1754790846943,0.22249721,116660.0,116650.0,0.13984109]
[1754790847141,0.22249721,116660.0,116650.0,0.43974811]
[1754790848339,0.22249721,116660.0,116650.0,0.46229811]
[1754790848537,0.13679541,116660.0,116650.0,0.46229811]
[1754790848838,0.22249721,116660.0,116650.0,0.46229811]
[1754790850342,0.13679541,116660.0,116650.0,0.46229811]
[1754790850538,0.11793,116660.0,116650.0,0.46229811]
[1754790850933,0.11793,116660.0,116650.0,0.82309811]
[1754790851842,0.2036318,116660.0,116650.0,0.82309811]
[1754790852648,0.11793,116660.0,116650.0,0.82309811]
[1754790855049,0.13676594,116660.0,116650.0,0.82309811]
[1754790855749,0.13676594,116660.0,116650.0,1.62641811]
[1754790856751,0.22246774,116660.0,116650.0,1.62641811]
[1754790857351,0.13676594,116660.0,116650.0,1.62641811]
[1754790858255,0.13676473,116660.0,116650.0,1.62641811]
[1754790858457,0.22246653,116660.0,116650.0,1.62641811]
[1754790860056,0.22246653,116660.0,116650.0,1.26561811]
[1754790860260,0.22246653,116660.0,116650.0,1.62641811]
[1754790863660,0.13676473,116660.0,116650.0,1.62641811]
[1754790864360,0.13676473,116660.0,116650.0,1.36475109]
[1754790864659,0.13676473,116660.0,116650.0,1.62641811]
[1754790865061,0.11793,116660.0,116650.0,1.62641811]
[1754790865253,0.11793,116660.0,116650.0,1.88808513]
[1754790867758,0.2036318,116660.0,116650.0,1.88808513]
[1754790868262,0.2036318,116660.0,116650.0,1.62641811]
[1754790868962,0.11793,116660.0,116650.0,1.62641811]
[1754790869961,0.11793,116660.0,116650.0,1.36475109]
[1754790870260,0.11793,116660.0,116650.0,1.62641811]
[1754790871062,0.11793,116660.0,116650.0,1.26561811]
[1754790871257,0.11793,116660.0,116650.0,1.62641811]
[1754790871559,0.13710736,116660.0,116650.0,1.62641811]
[1754790874863,0.13710736,116660.0,116650.0,1.88808513]
[1754790876963,0.13710736,116660.0,116650.0,1.62641811]
[1754790881762,0.13710736,116660.0,116650.0,1.88808513]
[1754790882870,0.10420736,116660.0,116650.0,1.88808513]
[1754790883871,0.08295736,116660.0,116650.0,1.88808513]
[1754790885264,0.02017736,116660.0,116650.0,1.88808513]
[1754790885665,0.04366736,116660.0,116650.0,1.88808513]
[1754790885866,0.04366736,116660.0,116650.0,1.62641811]
[1754790891275,0.06811736,116660.0,116650.0,1.62641811]
[1754790892780,0.06811736,116660.0,116650.0,1.36475109]
[1754790893078,0.06811736,116660.0,116650.0,1.62641811]
[1754790895586,0.11692736,116660.0,116650.0,1.62641811]
[1754790895974,0.11692736,116660.0,116650.0,1.26561811]
[1754790896187,0.13941736,116660.0,116650.0,1.26561811]
[1754790897183,0.22511966,116660.0,116650.0,1.26561811]
[1754790902390,0.22511966,116660.0,116650.0,1.00395109]
[1754790902593,0.48678668,116660.0,116650.0,1.26561811]
[1754790904094,0.22511966,116660.0,116650.0,1.26561811]
[1754790905097,0.22511966,116660.0,116650.0,1.00395109]
[1754790905297,0.22511966,116660.0,116650.0,1.26561811]
[1754790906495,0.22543883,116660.0,116650.0,1.26561811]
[1754790910501,0.22543883,116660.0,116650.0,1.00395109]
[1754790910705,0.22543883,116660.0,116650.0,1.26561811]
[1754790911206,0.48710585,116660.0,116650.0,1.26561811]
[1754790911602,0.48710585,116660.0,116650.0,1.00395109]
[1754790911803,0.48710585,116660.0,116650.0,1.26561811]
[1754790913903,0.22543883,116660.0,116650.0,1.26561811]
[1754790914202,0.22543883,116660.0,116650.0,1.26381811]
[1754790915406,0.22543883,116660.0,116650.0,1.00215109]
[1754790915701,0.22543883,116660.0,116650.0,1.26381811]
[1754790917608,0.48710585,116660.0,116650.0,1.26381811]
[1754790917908,0.48710585,116660.0,116650.0,1.00215109]
[1754790918100,0.48710585,116660.0,116650.0,1.26381811]
[1754790918802,0.22543883,116660.0,116650.0,1.26381811]
[1754790919305,0.22543883,116660.0,116650.0,1.17810921]
[1754790921303,0.22543883,116660.0,116650.0,0.37658921]
[1754790921503,0.22543883,116660.0,116650.0,1.17782921]
[1754790922109,0.22543883,116660.0,116650.0,0.91616219]
[1754790922407,0.22543883,116660.0,116650.0,1.17782921]
[1754790922809,0.22543883,116660.0,116650.0,0.91616219]
[1754790923008,0.22543883,116660.0,116650.0,1.17782921]
[1754790923511,0.22543883,116660.0,116650.0,0.91616219]
[1754790923711,0.22543883,116660.0,116650.0,1.17782921]
[1754790925213,0.22543883,116660.0,116650.0,1.26353891]
[1754790925711,0.22543883,116660.0,116650.0,1.26337891]
[1754790926413,0.22543883,116660.0,116650.0,1.17766921]
[1754790927313,0.58623883,116660.0,116650.0,1.17766921]
[1754790927509,0.58623883,116660.0,116650.0,0.91600219]
[1754790927710,0.58623883,116660.0,116650.0,1.17766921]
[1754790928113,0.58722883,116660.0,116650.0,1.17766921]
[1754790929912,0.58722883,116660.0,116650.0,0.35921702]
[1754790930312,0.84889585,116660.0,116650.0,0.35921702]
[1754790931018,0.84889585,116660.0,116650.0,0.09755]
[1754790931318,0.84889585,116660.0,116650.0,0.35921702]
[1754790932324,0.58722883,116660.0,116650.0,0.35921702]
[1754790932516,0.84889585,116660.0,116650.0,0.09755]
[1754790932811,0.84889585,116660.0,116650.0,0.35921702]
[1754790933220,0.84889585,116660.0,116650.0,0.09755]
[1754790933419,0.84889585,116660.0,116650.0,0.35921702]
[1754790933608,0.58722883,116660.0,116650.0,0.35921702]
[1754790933919,0.84889585,116660.0,116650.0,0.35921702]
[1754790934822,0.58722883,116660.0,116650.0,0.35921702]
[1754790935519,0.84889585,116660.0,116650.0,0.35921702]
[1754790935915,0.84889585,116660.0,116650.0,1.16005702]
[1754790937422,0.58722883,116660.0,116650.0,1.16005702]
[1754790937720,0.84889585,116660.0,116650.0,1.16005702]
[1754790937920,0.58722883,116660.0,116650.0,1.16005702]
[1754790938117,0.84889585,116660.0,116650.0,1.16005702]
[1754790939522,0.58722883,116660.0,116650.0,1.16005702]
[1754790939725,0.84889585,116660.0,116650.0,1.16005702]
[1754790940325,0.58722883,116660.0,116650.0,1.16005702]
[1754790940725,0.84889585,116660.0,116650.0,1.16005702]
[1754790940926,0.58722883,116660.0,116650.0,1.16005702]
[1754790942728,0.22642883,116660.0,116650.0,1.16005702]
[1754790942923,0.58722883,116660.0,116650.0,1.16005702]
[1754790945728,0.22642883,116660.0,116650.0,1.16005702]
[1754790945928,0.58722883,116660.0,116650.0,1.16005702]
[1754790949127,0.22642883,116660.0,116650.0,1.16005702]
[1754790949327,0.58722883,116660.0,116650.0,1.16005702]
[1754790949733,0.22642883,116660.0,116650.0,1.16005702]
[1754790949931,0.58722883,116660.0,116650.0,1.16005702]
[1754790950533,0.58722883,116660.0,116650.0,0.89839]
[1754790950726,0.58722883,116660.0,116650.0,1.16005702]
[1754790954737,0.22642883,116660.0,116650.0,1.16005702]
[1754790954936,0.58722883,116660.0,116650.0,1.16005702]
[1754790956839,0.58722883,116660.0,116650.0,0.89839]
[1754790957041,0.58722883,116660.0,116650.0,1.16005702]
[1754790958639,0.58722883,116660.0,116650.0,1.24576702]
[1754790960441,0.58722883,116660.0,116650.0,0.89839]
[1754790960641,0.58722883,116660.0,116650.0,1.16005702]
[1754790961542,0.58722883,116660.0,116650.0,0.89839]